{"text_format":"1","workbook":"xlsx","n_sheets":1,"sheets":["Scrip order form website"],"not_rendered":{"charts":0,"images":0,"macros":0,"external_links":0,"defined_names":15,"comments":0,"pivot_tables":0},"unopened":[],"bounds":{"document_bytes":16777216,"sheet_cells":100000,"rows_first":2000,"rows_last":500,"rows_between":2000,"halvings":0,"cell_chars":16384,"cell_head_chars":4096},"cells_cut":0,"cells_raw":0,"read":"whole","date_system":"1900"}

{"sheet":"Scrip order form website","index":0,"n_rows":64,"n_cols":256,"rows_kept":64,"cut":false,"hidden":false,"merged":[[58,7,58,11],[1,0,1,11],[0,0,0,11],[6,5,6,7],[3,1,3,2],[6,1,6,4],[5,1,5,4],[4,1,4,4]]}
[" MAPLE CREEK MIDDLE SCHOOL SCRIP ORDER FORM"]
[]
["ORDER/PAYMENT INFORMATION"]
["Date:",null,null,null,null,"*Additional Scrip and different denominations of Scrip may be available. "]
["Parent Name",null,null,null,null,null," Visit www.glscrip.com for a complete list of scrip available to you."]
["Telephone No."]
["Email Address:",null,null,null,null,"* Make Checks payable to MCMS Scrip"]
["ORDER DROP OFF/ PICK-UP INFORMATION"]
["Order drop-off dates will be every 1st and 3rd Friday of the month before 8am."]
["Order pick-up dates will be every 2nd and 4th Friday of the month after 1pm."]
["QUESTIONS?  Please Contact:",null,"Janet Evans - jahanefeld@frontier.com     260-348-4530"]
["MISC","AMT","%REC","QTY","TOTAL",null,null,"RESTAURANTS","AMT","%REC","QTY","TOTAL"]
["Aeropostale",25,7.0000000000000007E-2,null,null,null,null,"Agave's",10,0.1,null,null,{"$f":"IF(ISERROR(#REF!*#REF!),0,(#REF!*#REF!))","v":0},{"$f":"IF(ISERROR(E18*C18),0,(E18*C18))","v":0}]
["American Eagle",25,0.1,null,null,null,null,"Amore's Pizza",10,0.1,null,null,{"$f":"IF(ISERROR(#REF!*#REF!),0,(#REF!*#REF!))","v":0},0]
["American Express",25,1.2500000000000001E-2,null,null,null,null,"Applebee's",25,0.08,null,null,{"$f":"IF(ISERROR(E21*C21),0,(E21*C21))","v":0},{"$f":"IF(ISERROR(#REF!*#REF!),0,(#REF!*#REF!))","v":0}]
["Barnes & Nobles",10,0.09,null,null,null,null,"Arby's",10,0.08,null,null,{"$f":"IF(ISERROR(E22*C22),0,(E22*C22))","v":0},{"$f":"IF(ISERROR(#REF!*#REF!),0,(#REF!*#REF!))","v":0}]
["Barnes & Nobles",25,0.09,null,null,null,null,"Asakusa ",25,0.1,null,null,{"$f":"IF(ISERROR(#REF!*#REF!),0,(#REF!*#REF!))","v":0},{"$f":"IF(ISERROR(#REF!*#REF!),0,(#REF!*#REF!))","v":0}]
["Bath & Bodyworks",10,0.13,null,null,null,null,"B. Antonio's Pizza",10,0.1,null,null,{"$f":"IF(ISERROR(#REF!*#REF!),0,(#REF!*#REF!))","v":0},{"$f":"IF(ISERROR(E44*C44),0,(E44*C44))","v":0}]
["Bath & Bodyworks",25,0.13,null,null,null,null,"Bandido's",10,0.1,null,null,{"$f":"IF(ISERROR(#REF!*#REF!),0,(#REF!*#REF!))","v":0},{"$f":"IF(ISERROR(E45*C45),0,(E45*C45))","v":0}]
["Bed Bath & Beyond",25,7.0000000000000007E-2,null,null,null,null,"Bob Evans",10,0.1,null,null,{"$f":"IF(ISERROR(#REF!*#REF!),0,(#REF!*#REF!))","v":0},{"$f":"IF(ISERROR(E46*C46),0,(E46*C46))","v":0}]
["Best Buy",25,0.03,null,null,null,null,"Buffalo Wild Wings",10,0.08,null,null,{"$f":"IF(ISERROR(#REF!*#REF!),0,(#REF!*#REF!))","v":0},{"$f":"IF(ISERROR(#REF!*#REF!),0,(#REF!*#REF!))","v":0}]
["Best Buy",100,0.03,null,null,null,null,"Burger King",10,0.04,null,null,{"$f":"IF(ISERROR(#REF!*#REF!),0,(#REF!*#REF!))","v":0},{"$f":"IF(ISERROR(E13*C14),0,(E13*C14))","v":0}]
["BP Gas",50,1.4999999999999999E-2,null,null,null,null,"Casa",10,0.05,null,null,{"$f":"IF(ISERROR(E23*C23),0,(E23*C23))","v":0},{"$f":"IF(ISERROR(E14*C16),0,(E14*C16))","v":0}]
["Claire's/Icing/Afterthoughts",10,0.09,null,null,null,null,"Cold Stone Creamery",10,0.08,null,null,{"$f":"IF(ISERROR(#REF!*#REF!),0,(#REF!*#REF!))","v":0},{"$f":"IF(ISERROR(E16*C17),0,(E16*C17))","v":0}]
["CVS Pharmacy",25,0.06,null,null,null,null,"Cookie Cottage",10,0.1,null,null,{"$f":"IF(ISERROR(E37*C37),0,(E37*C37))","v":0},{"$f":"IF(ISERROR(E17*#REF!),0,(E17*#REF!))","v":0}]
["Gap / Old Navy / Banana Republic",25,0.09,null,null,null,null,"Culvers",10,0.1,null,null,{"$f":"IF(ISERROR(E38*C38),0,(E38*C38))","v":0},{"$f":"IF(ISERROR(#REF!*C24),0,(#REF!*C24))","v":0}]
["Gordmans",25,7.0000000000000007E-2,null,null,null,null,"Culvers",25,0.1,null,null,{"$f":"IF(ISERROR(E53*C53),0,(E53*C53))","v":0},{"$f":"IF(ISERROR(E24*#REF!),0,(E24*#REF!))","v":0}]
["Great Clips",25,0.08,null,null,null,null,"Chili's",25,0.11,null,null,{"$f":"IF(ISERROR(E54*C54),0,(E54*C54))","v":0},{"$f":"IF(ISERROR(#REF!*#REF!),0,(#REF!*#REF!))","v":0}]
["Home Depot",25,0.04,null,null,null,null,"Chipolte",10,0.1,null,null,{"$f":"IF(ISERROR(#REF!*#REF!),0,(#REF!*#REF!))","v":0},{"$f":"IF(ISERROR(#REF!*#REF!),0,(#REF!*#REF!))","v":0}]
["Home Depot",100,0.04,null,null,null,null,"Cracker Barrel",10,0.09,null,null,{"$f":"IF(ISERROR(#REF!*#REF!),0,(#REF!*#REF!))","v":0},{"$f":"IF(ISERROR(#REF!*#REF!),0,(#REF!*#REF!))","v":0}]
["itunes",15,0.1,null,null,null,null,"DeBrand Fine Chocolates",10,0.1,null,null,{"$f":"IF(ISERROR(#REF!*#REF!),0,(#REF!*#REF!))","v":0},{"$f":"IF(ISERROR(E26*C26),0,(E26*C26))","v":0}]
["JC Penney ",25,0.05,null,null,null,null,"DeBrand Fine Chocolates",25,0.1,null,null,{"$f":"IF(ISERROR(#REF!*#REF!),0,(#REF!*#REF!))","v":0},{"$f":"IF(ISERROR(#REF!*#REF!),0,(#REF!*#REF!))","v":0}]
["Kohl's",25,0.04,null,null,null,null,"Granite City",25,0.1,null,null,{"$f":"IF(ISERROR(#REF!*#REF!),0,(#REF!*#REF!))","v":0},{"$f":"IF(ISERROR(E32*C32),0,(E32*C32))","v":0}]
["Kohl's",100,0.04,null,null,null,null,"Hall's",10,0.1,null,null,{"$f":"IF(ISERROR(#REF!*#REF!),0,(#REF!*#REF!))","v":0},{"$f":"IF(ISERROR(#REF!*#REF!),0,(#REF!*#REF!))","v":0}]
["Lowe's",25,0.04,null,null,null,null,"IHOP",25,0.08,null,null,{"$f":"IF(ISERROR(#REF!*#REF!),0,(#REF!*#REF!))","v":0},{"$f":"IF(ISERROR(E33*C33),0,(E33*C33))","v":0}]
["Lowe's",100,0.04,null,null,null,null,"KFC",5,0.08,null,null,{"$f":"IF(ISERROR(E58*C58),0,(E58*C58))","v":0},{"$f":"IF(ISERROR(E34*C34),0,(E34*C34))","v":0}]
["Marathon",25,0.03,null,null,null,null,"Logan's Roadhouse",25,0.08,null,null,{"$f":"IF(ISERROR(E59*C59),0,(E59*C59))","v":0},{"$f":"IF(ISERROR(#REF!*#REF!),0,(#REF!*#REF!))","v":0}]
["Marathon",100,0.03,null,null,null,null,"Los Cabos",10,0.15,null,null,{"$f":"IF(ISERROR(E60*C60),0,(E60*C60))","v":0},{"$f":"IF(ISERROR(#REF!*#REF!),0,(#REF!*#REF!))","v":0}]
["Marshalls",25,7.0000000000000007E-2,null,null,null,null,"McDonald's",10,0.1,null,null,{"$f":"IF(ISERROR(#REF!*#REF!),0,(#REF!*#REF!))","v":0},{"$f":"IF(ISERROR(#REF!*#REF!),0,(#REF!*#REF!))","v":0}]
["Meijer",25,0.03,null,null,null,null,"Mozzarelli's Pizza",10,0.15,null,null,{"$f":"IF(ISERROR(#REF!*#REF!),0,(#REF!*#REF!))","v":0},{"$f":"IF(ISERROR(E48*C48),0,(E48*C48))","v":0}]
["Meijer",100,0.03,null,null,null,null,"Panera Bread",10,0.09,null,null,{"$f":"IF(ISERROR(#REF!*#REF!),0,(#REF!*#REF!))","v":0},0]
["Menards Home Center",25,0.03,null,null,null,null,"Pizza Hut ",10,0.08,null,null,{"$f":"IF(ISERROR(#REF!*C20),0,(#REF!*C20))","v":0},{"$f":"IF(ISERROR(E51*C51),0,(E51*C51))","v":0}]
["Menards Home Center",100,0.03,null,null,null,null,"Red Lobster/Olive Garden/ Smokey Bones ",25,0.09,null,null,{"$f":"IF(ISERROR(#REF!*#REF!),0,(#REF!*#REF!))","v":0},{"$f":"IF(ISERROR(E52*C52),0,(E52*C52))","v":0}]
["Mike's Car Wash",8,0.2,null,null,null,null,"Red Robin",25,0.09,null,null,{"$f":"IF(ISERROR(#REF!*#REF!),0,(#REF!*#REF!))","v":0},{"$f":"IF(ISERROR(#REF!*#REF!),0,(#REF!*#REF!))","v":0}]
["Mike's Car Wash",12,0.2,null,null,null,null,"Ruby Tuesdays",25,0.08,null,null,{"$f":"IF(ISERROR(#REF!*#REF!),0,(#REF!*#REF!))","v":0},{"$f":"IF(ISERROR(E55*C56),0,(E55*C56))","v":0}]
["Mike's Car Wash",15,0.2,null,null,null,null,"Starbucks",10,7.0000000000000007E-2,null,null,{"$f":"IF(ISERROR(#REF!*#REF!),0,(#REF!*#REF!))","v":0},{"$f":"IF(ISERROR(#REF!*#REF!),0,(#REF!*#REF!))","v":0}]
["Old Navy",25,0.09,null,null,null,null,"Steak 'n Shake",10,0.08,null,null,{"$f":"IF(ISERROR(#REF!*#REF!),0,(#REF!*#REF!))","v":0},{"$f":"IF(ISERROR(#REF!*#REF!),0,(#REF!*#REF!))","v":0}]
["Overstock.com",25,0.08,null,null,null,null,"Subway",10,0.03]
["Payless Shoes",20,0.13,null,null,null,null,"Sun Rise Café",10,0.1]
["PetSmart",25,0.04,null,null,null,null,"TGI Fridays",25,0.09,null,null,{"$f":"IF(ISERROR(L12*J12),0,(L12*J12))","v":0},{"$f":"IF(ISERROR(#REF!*#REF!),0,(#REF!*#REF!))","v":0}]
["Sears Debit Card",25,0.04,null,null,null,null,"Texas Roadhouse ",25,0.08,null,null,{"$f":"IF(ISERROR(L26*J26),0,(L26*J26))","v":0},{"$f":"IF(ISERROR(E29*C29),0,(E29*C29))","v":0}]
["Sears Debit Card",100,0.04,null,null,null,null,"Wendy's",10,0.04,null,null,{"$f":"IF(ISERROR(L27*J27),0,(L27*J27))","v":0},{"$f":"IF(ISERROR(E30*C30),0,(E30*C30))","v":0}]
["Speedway",25,0.04,null,null,null,null,"Wings Etc.",10,0.04,null,null,{"$f":"IF(ISERROR(L31*J31),0,(L31*J31))","v":0},{"$f":"IF(ISERROR(E35*C35),0,(E35*C35))","v":0}]
["Speedway",100,0.04,null,null,null,null,"YoYo's",10,0.25,null,null,{"$f":"IF(ISERROR(L32*J32),0,(L32*J32))","v":0},{"$f":"IF(ISERROR(E36*C36),0,(E36*C36))","v":0}]
["Target",25,0.02,null,null,null,null,"Ziano's",25,0.15,null,null,{"$f":"IF(ISERROR(#REF!*#REF!),0,(#REF!*#REF!))","v":0},{"$f":"IF(ISERROR(E43*C43),0,(E43*C43))","v":0},null,null,null,null,null,null,null,null,null,null,null,null,null,null,null,null,null,null,null,null,null,null,null,null,null,null,null,null,null,null,null,null,null,null,null,null,null,null,null,null,null,null,null,null,null,null,null,null,null,null,null,null,null,null,null,null,null,null,null,null,null,null,null,null,null,null,null,"~~~~~~Don't see what your wanting here?  Visit www.glscrip.com for a complete list of scrip available to you.~~~~~~~~~~","~~~~~~Don't see what your wanting here?  Visit www.glscrip.com for a complete list of scrip available to you.~~~~~~~~~~","~~~~~~Don't see what your wanting here?  Visit www.glscrip.com for a complete list of scrip available to you.~~~~~~~~~~","~~~~~~Don't see what your wanting here?  Visit www.glscrip.com for a complete list of scrip available to you.~~~~~~~~~~","~~~~~~Don't see what your wanting here?  Visit www.glscrip.com for a complete list of scrip available to you.~~~~~~~~~~","~~~~~~Don't see what your wanting here?  Visit www.glscrip.com for a complete list of scrip available to you.~~~~~~~~~~","~~~~~~Don't see what your wanting here?  Visit www.glscrip.com for a complete list of scrip available to you.~~~~~~~~~~","~~~~~~Don't see what your wanting here?  Visit www.glscrip.com for a complete list of scrip available to you.~~~~~~~~~~","~~~~~~Don't see what your wanting here?  Visit www.glscrip.com for a complete list of scrip available to you.~~~~~~~~~~","~~~~~~Don't see what your wanting here?  Visit www.glscrip.com for a complete list of scrip available to you.~~~~~~~~~~","~~~~~~Don't see what your wanting here?  Visit www.glscrip.com for a complete list of scrip available to you.~~~~~~~~~~","~~~~~~Don't see what your wanting here?  Visit www.glscrip.com for a complete list of scrip available to you.~~~~~~~~~~","~~~~~~Don't see what your wanting here?  Visit www.glscrip.com for a complete list of scrip available to you.~~~~~~~~~~","~~~~~~Don't see what your wanting here?  Visit www.glscrip.com for a complete list of scrip available to you.~~~~~~~~~~","~~~~~~Don't see what your wanting here?  Visit www.glscrip.com for a complete list of scrip available to you.~~~~~~~~~~","~~~~~~Don't see what your wanting here?  Visit www.glscrip.com for a complete list of scrip available to you.~~~~~~~~~~","~~~~~~Don't see what your wanting here?  Visit www.glscrip.com for a complete list of scrip available to you.~~~~~~~~~~","~~~~~~Don't see what your wanting here?  Visit www.glscrip.com for a complete list of scrip available to you.~~~~~~~~~~","~~~~~~Don't see what your wanting here?  Visit www.glscrip.com for a complete list of scrip available to you.~~~~~~~~~~","~~~~~~Don't see what your wanting here?  Visit www.glscrip.com for a complete list of scrip available to you.~~~~~~~~~~","~~~~~~Don't see what your wanting here?  Visit www.glscrip.com for a complete list of scrip available to you.~~~~~~~~~~","~~~~~~Don't see what your wanting here?  Visit www.glscrip.com for a complete list of scrip available to you.~~~~~~~~~~","~~~~~~Don't see what your wanting here?  Visit www.glscrip.com for a complete list of scrip available to you.~~~~~~~~~~","~~~~~~Don't see what your wanting here?  Visit www.glscrip.com for a complete list of scrip available to you.~~~~~~~~~~","~~~~~~Don't see what your wanting here?  Visit www.glscrip.com for a complete list of scrip available to you.~~~~~~~~~~","~~~~~~Don't see what your wanting here?  Visit www.glscrip.com for a complete list of scrip available to you.~~~~~~~~~~","~~~~~~Don't see what your wanting here?  Visit www.glscrip.com for a complete list of scrip available to you.~~~~~~~~~~","~~~~~~Don't see what your wanting here?  Visit www.glscrip.com for a complete list of scrip available to you.~~~~~~~~~~","~~~~~~Don't see what your wanting here?  Visit www.glscrip.com for a complete list of scrip available to you.~~~~~~~~~~","~~~~~~Don't see what your wanting here?  Visit www.glscrip.com for a complete list of scrip available to you.~~~~~~~~~~","~~~~~~Don't see what your wanting here?  Visit www.glscrip.com for a complete list of scrip available to you.~~~~~~~~~~","~~~~~~Don't see what your wanting here?  Visit www.glscrip.com for a complete list of scrip available to you.~~~~~~~~~~","~~~~~~Don't see what your wanting here?  Visit www.glscrip.com for a complete list of scrip available to you.~~~~~~~~~~","~~~~~~Don't see what your wanting here?  Visit www.glscrip.com for a complete list of scrip available to you.~~~~~~~~~~","~~~~~~Don't see what your wanting here?  Visit www.glscrip.com for a complete list of scrip available to you.~~~~~~~~~~","~~~~~~Don't see what your wanting here?  Visit www.glscrip.com for a complete list of scrip available to you.~~~~~~~~~~","~~~~~~Don't see what your wanting here?  Visit www.glscrip.com for a complete list of scrip available to you.~~~~~~~~~~","~~~~~~Don't see what your wanting here?  Visit www.glscrip.com for a complete list of scrip available to you.~~~~~~~~~~","~~~~~~Don't see what your wanting here?  Visit www.glscrip.com for a complete list of scrip available to you.~~~~~~~~~~","~~~~~~Don't see what your wanting here?  Visit www.glscrip.com for a complete list of scrip available to you.~~~~~~~~~~","~~~~~~Don't see what your wanting here?  Visit www.glscrip.com for a complete list of scrip available to you.~~~~~~~~~~","~~~~~~Don't see what your wanting here?  Visit www.glscrip.com for a complete list of scrip available to you.~~~~~~~~~~","~~~~~~Don't see what your wanting here?  Visit www.glscrip.com for a complete list of scrip available to you.~~~~~~~~~~","~~~~~~Don't see what your wanting here?  Visit www.glscrip.com for a complete list of scrip available to you.~~~~~~~~~~","~~~~~~Don't see what your wanting here?  Visit www.glscrip.com for a complete list of scrip available to you.~~~~~~~~~~","~~~~~~Don't see what your wanting here?  Visit www.glscrip.com for a complete list of scrip available to you.~~~~~~~~~~","~~~~~~Don't see what your wanting here?  Visit www.glscrip.com for a complete list of scrip available to you.~~~~~~~~~~","~~~~~~Don't see what your wanting here?  Visit www.glscrip.com for a complete list of scrip available to you.~~~~~~~~~~","~~~~~~Don't see what your wanting here?  Visit www.glscrip.com for a complete list of scrip available to you.~~~~~~~~~~","~~~~~~Don't see what your wanting here?  Visit www.glscrip.com for a complete list of scrip available to you.~~~~~~~~~~","~~~~~~Don't see what your wanting here?  Visit www.glscrip.com for a complete list of scrip available to you.~~~~~~~~~~","~~~~~~Don't see what your wanting here?  Visit www.glscrip.com for a complete list of scrip available to you.~~~~~~~~~~","~~~~~~Don't see what your wanting here?  Visit www.glscrip.com for a complete list of scrip available to you.~~~~~~~~~~","~~~~~~Don't see what your wanting here?  Visit www.glscrip.com for a complete list of scrip available to you.~~~~~~~~~~","~~~~~~Don't see what your wanting here?  Visit www.glscrip.com for a complete list of scrip available to you.~~~~~~~~~~","~~~~~~Don't see what your wanting here?  Visit www.glscrip.com for a complete list of scrip available to you.~~~~~~~~~~","~~~~~~Don't see what your wanting here?  Visit www.glscrip.com for a complete list of scrip available to you.~~~~~~~~~~","~~~~~~Don't see what your wanting here?  Visit www.glscrip.com for a complete list of scrip available to you.~~~~~~~~~~","~~~~~~Don't see what your wanting here?  Visit www.glscrip.com for a complete list of scrip available to you.~~~~~~~~~~","~~~~~~Don't see what your wanting here?  Visit www.glscrip.com for a complete list of scrip available to you.~~~~~~~~~~","~~~~~~Don't see what your wanting here?  Visit www.glscrip.com for a complete list of scrip available to you.~~~~~~~~~~","~~~~~~Don't see what your wanting here?  Visit www.glscrip.com for a complete list of scrip available to you.~~~~~~~~~~","~~~~~~Don't see what your wanting here?  Visit www.glscrip.com for a complete list of scrip available to you.~~~~~~~~~~","~~~~~~Don't see what your wanting here?  Visit www.glscrip.com for a complete list of scrip available to you.~~~~~~~~~~","~~~~~~Don't see what your wanting here?  Visit www.glscrip.com for a complete list of scrip available to you.~~~~~~~~~~","~~~~~~Don't see what your wanting here?  Visit www.glscrip.com for a complete list of scrip available to you.~~~~~~~~~~","~~~~~~Don't see what your wanting here?  Visit www.glscrip.com for a complete list of scrip available to you.~~~~~~~~~~","~~~~~~Don't see what your wanting here?  Visit www.glscrip.com for a complete list of scrip available to you.~~~~~~~~~~","~~~~~~Don't see what your wanting here?  Visit www.glscrip.com for a complete list of scrip available to you.~~~~~~~~~~","~~~~~~Don't see what your wanting here?  Visit www.glscrip.com for a complete list of scrip available to you.~~~~~~~~~~","~~~~~~Don't see what your wanting here?  Visit www.glscrip.com for a complete list of scrip available to you.~~~~~~~~~~","~~~~~~Don't see what your wanting here?  Visit www.glscrip.com for a complete list of scrip available to you.~~~~~~~~~~","~~~~~~Don't see what your wanting here?  Visit www.glscrip.com for a complete list of scrip available to you.~~~~~~~~~~","~~~~~~Don't see what your wanting here?  Visit www.glscrip.com for a complete list of scrip available to you.~~~~~~~~~~","~~~~~~Don't see what your wanting here?  Visit www.glscrip.com for a complete list of scrip available to you.~~~~~~~~~~","~~~~~~Don't see what your wanting here?  Visit www.glscrip.com for a complete list of scrip available to you.~~~~~~~~~~","~~~~~~Don't see what your wanting here?  Visit www.glscrip.com for a complete list of scrip available to you.~~~~~~~~~~","~~~~~~Don't see what your wanting here?  Visit www.glscrip.com for a complete list of scrip available to you.~~~~~~~~~~","~~~~~~Don't see what your wanting here?  Visit www.glscrip.com for a complete list of scrip available to you.~~~~~~~~~~","~~~~~~Don't see what your wanting here?  Visit www.glscrip.com for a complete list of scrip available to you.~~~~~~~~~~","~~~~~~Don't see what your wanting here?  Visit www.glscrip.com for a complete list of scrip available to you.~~~~~~~~~~","~~~~~~Don't see what your wanting here?  Visit www.glscrip.com for a complete list of scrip available to you.~~~~~~~~~~","~~~~~~Don't see what your wanting here?  Visit www.glscrip.com for a complete list of scrip available to you.~~~~~~~~~~","~~~~~~Don't see what your wanting here?  Visit www.glscrip.com for a complete list of scrip available to you.~~~~~~~~~~","~~~~~~Don't see what your wanting here?  Visit www.glscrip.com for a complete list of scrip available to you.~~~~~~~~~~","~~~~~~Don't see what your wanting here?  Visit www.glscrip.com for a complete list of scrip available to you.~~~~~~~~~~","~~~~~~Don't see what your wanting here?  Visit www.glscrip.com for a complete list of scrip available to you.~~~~~~~~~~","~~~~~~Don't see what your wanting here?  Visit www.glscrip.com for a complete list of scrip available to you.~~~~~~~~~~","~~~~~~Don't see what your wanting here?  Visit www.glscrip.com for a complete list of scrip available to you.~~~~~~~~~~","~~~~~~Don't see what your wanting here?  Visit www.glscrip.com for a complete list of scrip available to you.~~~~~~~~~~","~~~~~~Don't see what your wanting here?  Visit www.glscrip.com for a complete list of scrip available to you.~~~~~~~~~~","~~~~~~Don't see what your wanting here?  Visit www.glscrip.com for a complete list of scrip available to you.~~~~~~~~~~","~~~~~~Don't see what your wanting here?  Visit www.glscrip.com for a complete list of scrip available to you.~~~~~~~~~~","~~~~~~Don't see what your wanting here?  Visit www.glscrip.com for a complete list of scrip available to you.~~~~~~~~~~","~~~~~~Don't see what your wanting here?  Visit www.glscrip.com for a complete list of scrip available to you.~~~~~~~~~~","~~~~~~Don't see what your wanting here?  Visit www.glscrip.com for a complete list of scrip available to you.~~~~~~~~~~","~~~~~~Don't see what your wanting here?  Visit www.glscrip.com for a complete list of scrip available to you.~~~~~~~~~~","~~~~~~Don't see what your wanting here?  Visit www.glscrip.com for a complete list of scrip available to you.~~~~~~~~~~","~~~~~~Don't see what your wanting here?  Visit www.glscrip.com for a complete list of scrip available to you.~~~~~~~~~~","~~~~~~Don't see what your wanting here?  Visit www.glscrip.com for a complete list of scrip available to you.~~~~~~~~~~","~~~~~~Don't see what your wanting here?  Visit www.glscrip.com for a complete list of scrip available to you.~~~~~~~~~~","~~~~~~Don't see what your wanting here?  Visit www.glscrip.com for a complete list of scrip available to you.~~~~~~~~~~","~~~~~~Don't see what your wanting here?  Visit www.glscrip.com for a complete list of scrip available to you.~~~~~~~~~~","~~~~~~Don't see what your wanting here?  Visit www.glscrip.com for a complete list of scrip available to you.~~~~~~~~~~","~~~~~~Don't see what your wanting here?  Visit www.glscrip.com for a complete list of scrip available to you.~~~~~~~~~~","~~~~~~Don't see what your wanting here?  Visit www.glscrip.com for a complete list of scrip available to you.~~~~~~~~~~","~~~~~~Don't see what your wanting here?  Visit www.glscrip.com for a complete list of scrip available to you.~~~~~~~~~~","~~~~~~Don't see what your wanting here?  Visit www.glscrip.com for a complete list of scrip available to you.~~~~~~~~~~","~~~~~~Don't see what your wanting here?  Visit www.glscrip.com for a complete list of scrip available to you.~~~~~~~~~~","~~~~~~Don't see what your wanting here?  Visit www.glscrip.com for a complete list of scrip available to you.~~~~~~~~~~","~~~~~~Don't see what your wanting here?  Visit www.glscrip.com for a complete list of scrip available to you.~~~~~~~~~~","~~~~~~Don't see what your wanting here?  Visit www.glscrip.com for a complete list of scrip available to you.~~~~~~~~~~","~~~~~~Don't see what your wanting here?  Visit www.glscrip.com for a complete list of scrip available to you.~~~~~~~~~~","~~~~~~Don't see what your wanting here?  Visit www.glscrip.com for a complete list of scrip available to you.~~~~~~~~~~","~~~~~~Don't see what your wanting here?  Visit www.glscrip.com for a complete list of scrip available to you.~~~~~~~~~~","~~~~~~Don't see what your wanting here?  Visit www.glscrip.com for a complete list of scrip available to you.~~~~~~~~~~","~~~~~~Don't see what your wanting here?  Visit www.glscrip.com for a complete list of scrip available to you.~~~~~~~~~~","~~~~~~Don't see what your wanting here?  Visit www.glscrip.com for a complete list of scrip available to you.~~~~~~~~~~","~~~~~~Don't see what your wanting here?  Visit www.glscrip.com for a complete list of scrip available to you.~~~~~~~~~~","~~~~~~Don't see what your wanting here?  Visit www.glscrip.com for a complete list of scrip available to you.~~~~~~~~~~","~~~~~~Don't see what your wanting here?  Visit www.glscrip.com for a complete list of scrip available to you.~~~~~~~~~~","~~~~~~Don't see what your wanting here?  Visit www.glscrip.com for a complete list of scrip available to you.~~~~~~~~~~","~~~~~~Don't see what your wanting here?  Visit www.glscrip.com for a complete list of scrip available to you.~~~~~~~~~~","~~~~~~Don't see what your wanting here?  Visit www.glscrip.com for a complete list of scrip available to you.~~~~~~~~~~","~~~~~~Don't see what your wanting here?  Visit www.glscrip.com for a complete list of scrip available to you.~~~~~~~~~~","~~~~~~Don't see what your wanting here?  Visit www.glscrip.com for a complete list of scrip available to you.~~~~~~~~~~","~~~~~~Don't see what your wanting here?  Visit www.glscrip.com for a complete list of scrip available to you.~~~~~~~~~~","~~~~~~Don't see what your wanting here?  Visit www.glscrip.com for a complete list of scrip available to you.~~~~~~~~~~","~~~~~~Don't see what your wanting here?  Visit www.glscrip.com for a complete list of scrip available to you.~~~~~~~~~~","~~~~~~Don't see what your wanting here?  Visit www.glscrip.com for a complete list of scrip available to you.~~~~~~~~~~","~~~~~~Don't see what your wanting here?  Visit www.glscrip.com for a complete list of scrip available to you.~~~~~~~~~~","~~~~~~Don't see what your wanting here?  Visit www.glscrip.com for a complete list of scrip available to you.~~~~~~~~~~","~~~~~~Don't see what your wanting here?  Visit www.glscrip.com for a complete list of scrip available to you.~~~~~~~~~~","~~~~~~Don't see what your wanting here?  Visit www.glscrip.com for a complete list of scrip available to you.~~~~~~~~~~","~~~~~~Don't see what your wanting here?  Visit www.glscrip.com for a complete list of scrip available to you.~~~~~~~~~~","~~~~~~Don't see what your wanting here?  Visit www.glscrip.com for a complete list of scrip available to you.~~~~~~~~~~","~~~~~~Don't see what your wanting here?  Visit www.glscrip.com for a complete list of scrip available to you.~~~~~~~~~~","~~~~~~Don't see what your wanting here?  Visit www.glscrip.com for a complete list of scrip available to you.~~~~~~~~~~","~~~~~~Don't see what your wanting here?  Visit www.glscrip.com for a complete list of scrip available to you.~~~~~~~~~~","~~~~~~Don't see what your wanting here?  Visit www.glscrip.com for a complete list of scrip available to you.~~~~~~~~~~","~~~~~~Don't see what your wanting here?  Visit www.glscrip.com for a complete list of scrip available to you.~~~~~~~~~~","~~~~~~Don't see what your wanting here?  Visit www.glscrip.com for a complete list of scrip available to you.~~~~~~~~~~","~~~~~~Don't see what your wanting here?  Visit www.glscrip.com for a complete list of scrip available to you.~~~~~~~~~~","~~~~~~Don't see what your wanting here?  Visit www.glscrip.com for a complete list of scrip available to you.~~~~~~~~~~","~~~~~~Don't see what your wanting here?  Visit www.glscrip.com for a complete list of scrip available to you.~~~~~~~~~~","~~~~~~Don't see what your wanting here?  Visit www.glscrip.com for a complete list of scrip available to you.~~~~~~~~~~","~~~~~~Don't see what your wanting here?  Visit www.glscrip.com for a complete list of scrip available to you.~~~~~~~~~~","~~~~~~Don't see what your wanting here?  Visit www.glscrip.com for a complete list of scrip available to you.~~~~~~~~~~","~~~~~~Don't see what your wanting here?  Visit www.glscrip.com for a complete list of scrip available to you.~~~~~~~~~~","~~~~~~Don't see what your wanting here?  Visit www.glscrip.com for a complete list of scrip available to you.~~~~~~~~~~","~~~~~~Don't see what your wanting here?  Visit www.glscrip.com for a complete list of scrip available to you.~~~~~~~~~~","~~~~~~Don't see what your wanting here?  Visit www.glscrip.com for a complete list of scrip available to you.~~~~~~~~~~","~~~~~~Don't see what your wanting here?  Visit www.glscrip.com for a complete list of scrip available to you.~~~~~~~~~~","~~~~~~Don't see what your wanting here?  Visit www.glscrip.com for a complete list of scrip available to you.~~~~~~~~~~","~~~~~~Don't see what your wanting here?  Visit www.glscrip.com for a complete list of scrip available to you.~~~~~~~~~~","~~~~~~Don't see what your wanting here?  Visit www.glscrip.com for a complete list of scrip available to you.~~~~~~~~~~","~~~~~~Don't see what your wanting here?  Visit www.glscrip.com for a complete list of scrip available to you.~~~~~~~~~~","~~~~~~Don't see what your wanting here?  Visit www.glscrip.com for a complete list of scrip available to you.~~~~~~~~~~","~~~~~~Don't see what your wanting here?  Visit www.glscrip.com for a complete list of scrip available to you.~~~~~~~~~~","~~~~~~Don't see what your wanting here?  Visit www.glscrip.com for a complete list of scrip available to you.~~~~~~~~~~","~~~~~~Don't see what your wanting here?  Visit www.glscrip.com for a complete list of scrip available to you.~~~~~~~~~~","~~~~~~Don't see what your wanting here?  Visit www.glscrip.com for a complete list of scrip available to you.~~~~~~~~~~","~~~~~~Don't see what your wanting here?  Visit www.glscrip.com for a complete list of scrip available to you.~~~~~~~~~~","~~~~~~Don't see what your wanting here?  Visit www.glscrip.com for a complete list of scrip available to you.~~~~~~~~~~","~~~~~~Don't see what your wanting here?  Visit www.glscrip.com for a complete list of scrip available to you.~~~~~~~~~~","~~~~~~Don't see what your wanting here?  Visit www.glscrip.com for a complete list of scrip available to you.~~~~~~~~~~","~~~~~~Don't see what your wanting here?  Visit www.glscrip.com for a complete list of scrip available to you.~~~~~~~~~~","~~~~~~Don't see what your wanting here?  Visit www.glscrip.com for a complete list of scrip available to you.~~~~~~~~~~","~~~~~~Don't see what your wanting here?  Visit www.glscrip.com for a complete list of scrip available to you.~~~~~~~~~~","~~~~~~Don't see what your wanting here?  Visit www.glscrip.com for a complete list of scrip available to you.~~~~~~~~~~","~~~~~~Don't see what your wanting here?  Visit www.glscrip.com for a complete list of scrip available to you.~~~~~~~~~~","~~~~~~Don't see what your wanting here?  Visit www.glscrip.com for a complete list of scrip available to you.~~~~~~~~~~","~~~~~~Don't see what your wanting here?  Visit www.glscrip.com for a complete list of scrip available to you.~~~~~~~~~~","~~~~~~Don't see what your wanting here?  Visit www.glscrip.com for a complete list of scrip available to you.~~~~~~~~~~","~~~~~~Don't see what your wanting here?  Visit www.glscrip.com for a complete list of scrip available to you.~~~~~~~~~~"]
["TJ Maxx / Marshalls",25,7.0000000000000007E-2,null,null,null,null,null,null,null,null,null,{"$f":"IF(ISERROR(#REF!*#REF!),0,(#REF!*#REF!))","v":0},{"$f":"IF(ISERROR(#REF!*#REF!),0,(#REF!*#REF!))","v":0},null,null,null,null,null,null,null,null,null,null,null,null,null,null,null,null,null,null,null,null,null,null,null,null,null,null,null,null,null,null,null,null,null,null,null,null,null,null,null,null,null,null,null,null,null,null,null,null,null,null,null,null,null,null,null,null,null,null,null,null,null,null,null,null,null,null,null,"Please note:  Some scrip cards have specific requirements for usage. See www.glscrip.com for information BEFORE you order.  ","Please note:  Some scrip cards have specific requirements for usage. See www.glscrip.com for information BEFORE you order.  ","Please note:  Some scrip cards have specific requirements for usage. See www.glscrip.com for information BEFORE you order.  ","Please note:  Some scrip cards have specific requirements for usage. See www.glscrip.com for information BEFORE you order.  ","Please note:  Some scrip cards have specific requirements for usage. See www.glscrip.com for information BEFORE you order.  ","Please note:  Some scrip cards have specific requirements for usage. See www.glscrip.com for information BEFORE you order.  ","Please note:  Some scrip cards have specific requirements for usage. See www.glscrip.com for information BEFORE you order.  ","Please note:  Some scrip cards have specific requirements for usage. See www.glscrip.com for information BEFORE you order.  ","Please note:  Some scrip cards have specific requirements for usage. See www.glscrip.com for information BEFORE you order.  ","Please note:  Some scrip cards have specific requirements for usage. See www.glscrip.com for information BEFORE you order.  ","Please note:  Some scrip cards have specific requirements for usage. See www.glscrip.com for information BEFORE you order.  ","Please note:  Some scrip cards have specific requirements for usage. See www.glscrip.com for information BEFORE you order.  ","Please note:  Some scrip cards have specific requirements for usage. See www.glscrip.com for information BEFORE you order.  ","Please note:  Some scrip cards have specific requirements for usage. See www.glscrip.com for information BEFORE you order.  ","Please note:  Some scrip cards have specific requirements for usage. See www.glscrip.com for information BEFORE you order.  ","Please note:  Some scrip cards have specific requirements for usage. See www.glscrip.com for information BEFORE you order.  ","Please note:  Some scrip cards have specific requirements for usage. See www.glscrip.com for information BEFORE you order.  ","Please note:  Some scrip cards have specific requirements for usage. See www.glscrip.com for information BEFORE you order.  ","Please note:  Some scrip cards have specific requirements for usage. See www.glscrip.com for information BEFORE you order.  ","Please note:  Some scrip cards have specific requirements for usage. See www.glscrip.com for information BEFORE you order.  ","Please note:  Some scrip cards have specific requirements for usage. See www.glscrip.com for information BEFORE you order.  ","Please note:  Some scrip cards have specific requirements for usage. See www.glscrip.com for information BEFORE you order.  ","Please note:  Some scrip cards have specific requirements for usage. See www.glscrip.com for information BEFORE you order.  ","Please note:  Some scrip cards have specific requirements for usage. See www.glscrip.com for information BEFORE you order.  ","Please note:  Some scrip cards have specific requirements for usage. See www.glscrip.com for information BEFORE you order.  ","Please note:  Some scrip cards have specific requirements for usage. See www.glscrip.com for information BEFORE you order.  ","Please note:  Some scrip cards have specific requirements for usage. See www.glscrip.com for information BEFORE you order.  ","Please note:  Some scrip cards have specific requirements for usage. See www.glscrip.com for information BEFORE you order.  ","Please note:  Some scrip cards have specific requirements for usage. See www.glscrip.com for information BEFORE you order.  ","Please note:  Some scrip cards have specific requirements for usage. See www.glscrip.com for information BEFORE you order.  ","Please note:  Some scrip cards have specific requirements for usage. See www.glscrip.com for information BEFORE you order.  ","Please note:  Some scrip cards have specific requirements for usage. See www.glscrip.com for information BEFORE you order.  ","Please note:  Some scrip cards have specific requirements for usage. See www.glscrip.com for information BEFORE you order.  ","Please note:  Some scrip cards have specific requirements for usage. See www.glscrip.com for information BEFORE you order.  ","Please note:  Some scrip cards have specific requirements for usage. See www.glscrip.com for information BEFORE you order.  ","Please note:  Some scrip cards have specific requirements for usage. See www.glscrip.com for information BEFORE you order.  ","Please note:  Some scrip cards have specific requirements for usage. See www.glscrip.com for information BEFORE you order.  ","Please note:  Some scrip cards have specific requirements for usage. See www.glscrip.com for information BEFORE you order.  ","Please note:  Some scrip cards have specific requirements for usage. See www.glscrip.com for information BEFORE you order.  ","Please note:  Some scrip cards have specific requirements for usage. See www.glscrip.com for information BEFORE you order.  ","Please note:  Some scrip cards have specific requirements for usage. See www.glscrip.com for information BEFORE you order.  ","Please note:  Some scrip cards have specific requirements for usage. See www.glscrip.com for information BEFORE you order.  ","Please note:  Some scrip cards have specific requirements for usage. See www.glscrip.com for information BEFORE you order.  ","Please note:  Some scrip cards have specific requirements for usage. See www.glscrip.com for information BEFORE you order.  ","Please note:  Some scrip cards have specific requirements for usage. See www.glscrip.com for information BEFORE you order.  ","Please note:  Some scrip cards have specific requirements for usage. See www.glscrip.com for information BEFORE you order.  ","Please note:  Some scrip cards have specific requirements for usage. See www.glscrip.com for information BEFORE you order.  ","Please note:  Some scrip cards have specific requirements for usage. See www.glscrip.com for information BEFORE you order.  ","Please note:  Some scrip cards have specific requirements for usage. See www.glscrip.com for information BEFORE you order.  ","Please note:  Some scrip cards have specific requirements for usage. See www.glscrip.com for information BEFORE you order.  ","Please note:  Some scrip cards have specific requirements for usage. See www.glscrip.com for information BEFORE you order.  ","Please note:  Some scrip cards have specific requirements for usage. See www.glscrip.com for information BEFORE you order.  ","Please note:  Some scrip cards have specific requirements for usage. See www.glscrip.com for information BEFORE you order.  ","Please note:  Some scrip cards have specific requirements for usage. See www.glscrip.com for information BEFORE you order.  ","Please note:  Some scrip cards have specific requirements for usage. See www.glscrip.com for information BEFORE you order.  ","Please note:  Some scrip cards have specific requirements for usage. See www.glscrip.com for information BEFORE you order.  ","Please note:  Some scrip cards have specific requirements for usage. See www.glscrip.com for information BEFORE you order.  ","Please note:  Some scrip cards have specific requirements for usage. See www.glscrip.com for information BEFORE you order.  ","Please note:  Some scrip cards have specific requirements for usage. See www.glscrip.com for information BEFORE you order.  ","Please note:  Some scrip cards have specific requirements for usage. See www.glscrip.com for information BEFORE you order.  ","Please note:  Some scrip cards have specific requirements for usage. See www.glscrip.com for information BEFORE you order.  ","Please note:  Some scrip cards have specific requirements for usage. See www.glscrip.com for information BEFORE you order.  ","Please note:  Some scrip cards have specific requirements for usage. See www.glscrip.com for information BEFORE you order.  ","Please note:  Some scrip cards have specific requirements for usage. See www.glscrip.com for information BEFORE you order.  ","Please note:  Some scrip cards have specific requirements for usage. See www.glscrip.com for information BEFORE you order.  ","Please note:  Some scrip cards have specific requirements for usage. See www.glscrip.com for information BEFORE you order.  ","Please note:  Some scrip cards have specific requirements for usage. See www.glscrip.com for information BEFORE you order.  ","Please note:  Some scrip cards have specific requirements for usage. See www.glscrip.com for information BEFORE you order.  ","Please note:  Some scrip cards have specific requirements for usage. See www.glscrip.com for information BEFORE you order.  ","Please note:  Some scrip cards have specific requirements for usage. See www.glscrip.com for information BEFORE you order.  ","Please note:  Some scrip cards have specific requirements for usage. See www.glscrip.com for information BEFORE you order.  ","Please note:  Some scrip cards have specific requirements for usage. See www.glscrip.com for information BEFORE you order.  ","Please note:  Some scrip cards have specific requirements for usage. See www.glscrip.com for information BEFORE you order.  ","Please note:  Some scrip cards have specific requirements for usage. See www.glscrip.com for information BEFORE you order.  ","Please note:  Some scrip cards have specific requirements for usage. See www.glscrip.com for information BEFORE you order.  ","Please note:  Some scrip cards have specific requirements for usage. See www.glscrip.com for information BEFORE you order.  ","Please note:  Some scrip cards have specific requirements for usage. See www.glscrip.com for information BEFORE you order.  ","Please note:  Some scrip cards have specific requirements for usage. See www.glscrip.com for information BEFORE you order.  ","Please note:  Some scrip cards have specific requirements for usage. See www.glscrip.com for information BEFORE you order.  ","Please note:  Some scrip cards have specific requirements for usage. See www.glscrip.com for information BEFORE you order.  ","Please note:  Some scrip cards have specific requirements for usage. See www.glscrip.com for information BEFORE you order.  ","Please note:  Some scrip cards have specific requirements for usage. See www.glscrip.com for information BEFORE you order.  ","Please note:  Some scrip cards have specific requirements for usage. See www.glscrip.com for information BEFORE you order.  ","Please note:  Some scrip cards have specific requirements for usage. See www.glscrip.com for information BEFORE you order.  ","Please note:  Some scrip cards have specific requirements for usage. See www.glscrip.com for information BEFORE you order.  ","Please note:  Some scrip cards have specific requirements for usage. See www.glscrip.com for information BEFORE you order.  ","Please note:  Some scrip cards have specific requirements for usage. See www.glscrip.com for information BEFORE you order.  ","Please note:  Some scrip cards have specific requirements for usage. See www.glscrip.com for information BEFORE you order.  ","Please note:  Some scrip cards have specific requirements for usage. See www.glscrip.com for information BEFORE you order.  ","Please note:  Some scrip cards have specific requirements for usage. See www.glscrip.com for information BEFORE you order.  ","Please note:  Some scrip cards have specific requirements for usage. See www.glscrip.com for information BEFORE you order.  ","Please note:  Some scrip cards have specific requirements for usage. See www.glscrip.com for information BEFORE you order.  ","Please note:  Some scrip cards have specific requirements for usage. See www.glscrip.com for information BEFORE you order.  ","Please note:  Some scrip cards have specific requirements for usage. See www.glscrip.com for information BEFORE you order.  ","Please note:  Some scrip cards have specific requirements for usage. See www.glscrip.com for information BEFORE you order.  ","Please note:  Some scrip cards have specific requirements for usage. See www.glscrip.com for information BEFORE you order.  ","Please note:  Some scrip cards have specific requirements for usage. See www.glscrip.com for information BEFORE you order.  ","Please note:  Some scrip cards have specific requirements for usage. See www.glscrip.com for information BEFORE you order.  ","Please note:  Some scrip cards have specific requirements for usage. See www.glscrip.com for information BEFORE you order.  ","Please note:  Some scrip cards have specific requirements for usage. See www.glscrip.com for information BEFORE you order.  ","Please note:  Some scrip cards have specific requirements for usage. See www.glscrip.com for information BEFORE you order.  ","Please note:  Some scrip cards have specific requirements for usage. See www.glscrip.com for information BEFORE you order.  ","Please note:  Some scrip cards have specific requirements for usage. See www.glscrip.com for information BEFORE you order.  ","Please note:  Some scrip cards have specific requirements for usage. See www.glscrip.com for information BEFORE you order.  ","Please note:  Some scrip cards have specific requirements for usage. See www.glscrip.com for information BEFORE you order.  ","Please note:  Some scrip cards have specific requirements for usage. See www.glscrip.com for information BEFORE you order.  ","Please note:  Some scrip cards have specific requirements for usage. See www.glscrip.com for information BEFORE you order.  ","Please note:  Some scrip cards have specific requirements for usage. See www.glscrip.com for information BEFORE you order.  ","Please note:  Some scrip cards have specific requirements for usage. See www.glscrip.com for information BEFORE you order.  ","Please note:  Some scrip cards have specific requirements for usage. See www.glscrip.com for information BEFORE you order.  ","Please note:  Some scrip cards have specific requirements for usage. See www.glscrip.com for information BEFORE you order.  ","Please note:  Some scrip cards have specific requirements for usage. See www.glscrip.com for information BEFORE you order.  ","Please note:  Some scrip cards have specific requirements for usage. See www.glscrip.com for information BEFORE you order.  ","Please note:  Some scrip cards have specific requirements for usage. See www.glscrip.com for information BEFORE you order.  ","Please note:  Some scrip cards have specific requirements for usage. See www.glscrip.com for information BEFORE you order.  ","Please note:  Some scrip cards have specific requirements for usage. See www.glscrip.com for information BEFORE you order.  ","Please note:  Some scrip cards have specific requirements for usage. See www.glscrip.com for information BEFORE you order.  ","Please note:  Some scrip cards have specific requirements for usage. See www.glscrip.com for information BEFORE you order.  ","Please note:  Some scrip cards have specific requirements for usage. See www.glscrip.com for information BEFORE you order.  ","Please note:  Some scrip cards have specific requirements for usage. See www.glscrip.com for information BEFORE you order.  ","Please note:  Some scrip cards have specific requirements for usage. See www.glscrip.com for information BEFORE you order.  ","Please note:  Some scrip cards have specific requirements for usage. See www.glscrip.com for information BEFORE you order.  ","Please note:  Some scrip cards have specific requirements for usage. See www.glscrip.com for information BEFORE you order.  ","Please note:  Some scrip cards have specific requirements for usage. See www.glscrip.com for information BEFORE you order.  ","Please note:  Some scrip cards have specific requirements for usage. See www.glscrip.com for information BEFORE you order.  ","Please note:  Some scrip cards have specific requirements for usage. See www.glscrip.com for information BEFORE you order.  ","Please note:  Some scrip cards have specific requirements for usage. See www.glscrip.com for information BEFORE you order.  ","Please note:  Some scrip cards have specific requirements for usage. See www.glscrip.com for information BEFORE you order.  ","Please note:  Some scrip cards have specific requirements for usage. See www.glscrip.com for information BEFORE you order.  ","Please note:  Some scrip cards have specific requirements for usage. See www.glscrip.com for information BEFORE you order.  ","Please note:  Some scrip cards have specific requirements for usage. See www.glscrip.com for information BEFORE you order.  ","Please note:  Some scrip cards have specific requirements for usage. See www.glscrip.com for information BEFORE you order.  ","Please note:  Some scrip cards have specific requirements for usage. See www.glscrip.com for information BEFORE you order.  ","Please note:  Some scrip cards have specific requirements for usage. See www.glscrip.com for information BEFORE you order.  ","Please note:  Some scrip cards have specific requirements for usage. See www.glscrip.com for information BEFORE you order.  ","Please note:  Some scrip cards have specific requirements for usage. See www.glscrip.com for information BEFORE you order.  ","Please note:  Some scrip cards have specific requirements for usage. See www.glscrip.com for information BEFORE you order.  ","Please note:  Some scrip cards have specific requirements for usage. See www.glscrip.com for information BEFORE you order.  ","Please note:  Some scrip cards have specific requirements for usage. See www.glscrip.com for information BEFORE you order.  ","Please note:  Some scrip cards have specific requirements for usage. See www.glscrip.com for information BEFORE you order.  ","Please note:  Some scrip cards have specific requirements for usage. See www.glscrip.com for information BEFORE you order.  ","Please note:  Some scrip cards have specific requirements for usage. See www.glscrip.com for information BEFORE you order.  ","Please note:  Some scrip cards have specific requirements for usage. See www.glscrip.com for information BEFORE you order.  ","Please note:  Some scrip cards have specific requirements for usage. See www.glscrip.com for information BEFORE you order.  ","Please note:  Some scrip cards have specific requirements for usage. See www.glscrip.com for information BEFORE you order.  ","Please note:  Some scrip cards have specific requirements for usage. See www.glscrip.com for information BEFORE you order.  ","Please note:  Some scrip cards have specific requirements for usage. See www.glscrip.com for information BEFORE you order.  ","Please note:  Some scrip cards have specific requirements for usage. See www.glscrip.com for information BEFORE you order.  ","Please note:  Some scrip cards have specific requirements for usage. See www.glscrip.com for information BEFORE you order.  ","Please note:  Some scrip cards have specific requirements for usage. See www.glscrip.com for information BEFORE you order.  ","Please note:  Some scrip cards have specific requirements for usage. See www.glscrip.com for information BEFORE you order.  ","Please note:  Some scrip cards have specific requirements for usage. See www.glscrip.com for information BEFORE you order.  ","Please note:  Some scrip cards have specific requirements for usage. See www.glscrip.com for information BEFORE you order.  ","Please note:  Some scrip cards have specific requirements for usage. See www.glscrip.com for information BEFORE you order.  ","Please note:  Some scrip cards have specific requirements for usage. See www.glscrip.com for information BEFORE you order.  ","Please note:  Some scrip cards have specific requirements for usage. See www.glscrip.com for information BEFORE you order.  ","Please note:  Some scrip cards have specific requirements for usage. See www.glscrip.com for information BEFORE you order.  ","Please note:  Some scrip cards have specific requirements for usage. See www.glscrip.com for information BEFORE you order.  ","Please note:  Some scrip cards have specific requirements for usage. See www.glscrip.com for information BEFORE you order.  ","Please note:  Some scrip cards have specific requirements for usage. See www.glscrip.com for information BEFORE you order.  ","Please note:  Some scrip cards have specific requirements for usage. See www.glscrip.com for information BEFORE you order.  ","Please note:  Some scrip cards have specific requirements for usage. See www.glscrip.com for information BEFORE you order.  ","Please note:  Some scrip cards have specific requirements for usage. See www.glscrip.com for information BEFORE you order.  ","Please note:  Some scrip cards have specific requirements for usage. See www.glscrip.com for information BEFORE you order.  ","Please note:  Some scrip cards have specific requirements for usage. See www.glscrip.com for information BEFORE you order.  ","Please note:  Some scrip cards have specific requirements for usage. See www.glscrip.com for information BEFORE you order.  ","Please note:  Some scrip cards have specific requirements for usage. See www.glscrip.com for information BEFORE you order.  ","Please note:  Some scrip cards have specific requirements for usage. See www.glscrip.com for information BEFORE you order.  ","Please note:  Some scrip cards have specific requirements for usage. See www.glscrip.com for information BEFORE you order.  ","Please note:  Some scrip cards have specific requirements for usage. See www.glscrip.com for information BEFORE you order.  ","Please note:  Some scrip cards have specific requirements for usage. See www.glscrip.com for information BEFORE you order.  ","Please note:  Some scrip cards have specific requirements for usage. See www.glscrip.com for information BEFORE you order.  ","Please note:  Some scrip cards have specific requirements for usage. See www.glscrip.com for information BEFORE you order.  ","Please note:  Some scrip cards have specific requirements for usage. See www.glscrip.com for information BEFORE you order.  ","Please note:  Some scrip cards have specific requirements for usage. See www.glscrip.com for information BEFORE you order.  "]
["Walgreen's ",25,0.06,null,null,null,null,null,null,null,null,null,{"$f":"IF(ISERROR(#REF!*#REF!),0,(#REF!*#REF!))","v":0},{"$f":"IF(ISERROR(#REF!*#REF!),0,(#REF!*#REF!))","v":0}]
["Walmart",25,2.5000000000000001E-2,null,null,null,null,"DOCTORS/DENTIST/ORTHO",null,null,null,null,{"$f":"IF(ISERROR(L34*J34),0,(L34*J34))","v":0},{"$f":"IF(ISERROR(#REF!*#REF!),0,(#REF!*#REF!))","v":0}]
["Walmart",100,2.5000000000000001E-2,null,null,null,null,"Please call Dr. Ron Cohen's office at 489-8989 for information on how they will contribute to the MCMS Scrip Program.",null,null,null,null,{"$f":"IF(ISERROR(L36*J36),0,(L36*J36))","v":0},{"$f":"IF(ISERROR(#REF!*#REF!),0,(#REF!*#REF!))","v":0}]
["Walmart",250,2.5000000000000001E-2,null,null,null,null,null,null,null,null,null,{"$f":"IF(ISERROR(L37*J37),0,(L37*J37))","v":0},{"$f":"IF(ISERROR(#REF!*#REF!),0,(#REF!*#REF!))","v":0}]
[null,null,null,null,null,null,null,null,null,null,null,null,{"$f":"IF(ISERROR(#REF!*#REF!),0,(#REF!*#REF!))","v":0},{"$f":"IF(ISERROR(#REF!*#REF!),0,(#REF!*#REF!))","v":0}]
[null,null,null,null,null,null,null,null,null,null,null,null,{"$f":"IF(ISERROR(#REF!*#REF!),0,(#REF!*#REF!))","v":0},{"$f":"IF(ISERROR(#REF!*#REF!),0,(#REF!*#REF!))","v":0}]
[null,null,null,null,null,null,null,null,null,null,null,null,{"$f":"IF(ISERROR(#REF!*#REF!),0,(#REF!*#REF!))","v":0},{"$f":"IF(ISERROR(#REF!*#REF!),0,(#REF!*#REF!))","v":0}]
[null,null,null,null,null,null,null,null,null,null,null,null,{"$f":"IF(ISERROR(L41*J41),0,(L41*J41))","v":0},{"$f":"IF(ISERROR(#REF!*#REF!),0,(#REF!*#REF!))","v":0}]